Cogmind - Beta 15 @@@ ROGUE MODE // 2025.08.04 @ 19:44:26 Player: GiggleBox Result: Destroyed by Z-Imprinter with Zionite Laser-M Performance ------------- Evolutions (3) 1500 Regions Visited (12) 2400 Robots Destroyed (120) 600 Value Destroyed (2762) 2762 Prototype IDs (37) 740 Alien Tech Used (0) 0 Bonus (424) 424 TOTAL SCORE: 8426 Bonus ------- High Alert Combat Kills 99 Follower Combat Kills 25 Aligned with FarCom 300 Cogmind --------- Core Integrity 0/700 Matter 280/300 Energy 100/100 System Corruption 0% Temperature Cool (18) Movement Core (50) Location -7/Deep Caves Parts ------- > --- POWER (1) -------- (None) > --- PROPULSION (5) --- (None) > --- UTILITY (5) ------ Coolant Injector Improved Targeting Computer Advanced Targeting Computer Core Analyzer Hacking Drone Bay (1/1) > --- WEAPON (2) ------- (None) > --- INVENTORY (5) ---- (None) Peak State ------------ > --- POWER ------------ Deuterium Engine > --- PROPULSION ------- Improved Hover Unit Airjet Airjet Xenon Bombardment Thruster Makeshift Flight Unit > --- UTILITY ---------- Improved Targeting Computer Advanced Targeting Computer Advanced Targeting Computer Core Analyzer Improved Medium Armor Plating > --- WEAPON ----------- Molecular Deconstructor > --- INVENTORY -------- Coolant Injector Hacking Drone Bay Improved EM Pulse Cannon Field Lobotomy Kit Great Maul [Rating: 56] Favorites ----------- Power Heavy Ion Engine Engine Heavy Ion Engine Power Core Fission Core Propulsion Light Treads Treads Light Treads Wheel Compact Wheel Hover Unit Airjet Flight Unit Xenon Bombardment Thruster Utility Improved Targeting Computer Device Improved Heat Sink Storage Huge Storage Unit Processor Improved Targeting Computer Protection Improved Medium Armor Plating Weapon Light Cannon Energy Gun EM Pulse Gun Energy Cannon Improved EM Pulse Cannon Ballistic Gun Improved Assault Rifle Ballistic Cannon Light Cannon Launcher Grenade Launcher Special Weapon Molecular Deconstructor Impact Weapon Great Maul Slashing Weapon Phasing Sabre Build | -11 -10 -10 -9 -9 -9 -8 -8 -7 -7 -7 -7 -7 ------- Run | Yrd Mat Min Mat Min Exi Min Mat Fac Low Low Zio Dee Slots Evolved 6 | . . . 2 . . . 2 2 . . . . Power . | . . . . . . . . . . . . . Propulsion 3 | . . . 1 . . . 1 1 . . . . Utility 3 | . . . 1 . . . 1 1 . . . . Weapon . | . . . . . . . . . . . . . Parts Attached 86 | 7 7 8 27 . . 1 16 7 1 2 4 6 Power 11 | 1 . 3 3 . . . 3 . 1 . . . Engine 9 | 1 . 2 3 . . . 2 . 1 . . . Core 2 | . . 1 . . . . 1 . . . . . Reactor . | . . . . . . . . . . . . . Propulsion 25 | 2 1 1 9 . . . 6 2 . . 2 2 Treads 10 | 2 . 1 6 . . . 1 . . . . . Leg . | . . . . . . . . . . . . . Wheel 5 | . 1 . 3 . . . 1 . . . . . Hover 8 | . . . . . . . 4 2 . . . 2 Flight 2 | . . . . . . . . . . . 2 . Utility 21 | 2 3 1 4 . . . 6 2 . 1 . 2 Device 7 | 1 2 . 1 . . . 1 . . . . 2 Storage 3 | 1 1 . . . . . 1 . . . . . Processor 7 | . . . 2 . . . 3 1 . 1 . . Hackware . | . . . . . . . . . . . . . Protection 4 | . . 1 1 . . . 1 1 . . . . Artifact . | . . . . . . . . . . . . . Weapon 29 | 2 3 3 11 . . 1 1 3 . 1 2 2 Energy Gun 3 | 2 1 . . . . . . . . . . . Energy Cannon 2 | . . . . . . . . 2 . . . . Ballistic Gun 4 | . . . 3 . . . . 1 . . . . Ballistic Cannon 8 | . 1 3 3 . . 1 . . . . . . Launcher 6 | . 1 . 3 . . . . . . . 2 . Special Weapon 2 | . . . . . . . . . . 1 . 1 Impact Weapon 3 | . . . 2 . . . 1 . . . . . Slashing Weapon 1 | . . . . . . . . . . . . 1 Piercing Weapon . | . . . . . . . . . . . . . Special Melee Weapon . | . . . . . . . . . . . . . Unidentified Prototypes 5 | . . . . . . . . . . 1 2 2 Corrupted Parts 2 | . . 2 . . . . . . . . . . System Corruption 8 | . . 8 . . . . . . . . . . Parts Lost 36 | . 1 5 8 . . . 2 2 4 1 . 13 Power 5 | . . 2 1 . . . . . 1 . . 1 Propulsion 15 | . . 1 3 . . . 1 1 2 . . 7 Utility 8 | . . 1 2 . . . 1 . 1 1 . 2 Weapon 8 | . 1 1 2 . . . . 1 . . . 3 Highest Loss Streak 13 | . 1 3 2 . . . 1 2 3 1 . 13 To Critical Strikes . | . . . . . . . . . . . . . Average Backups 17 | 2 12 22 24 25 25 25 16 7 6 5 5 4 Power . | . 1 1 1 1 1 1 1 . . . . . Propulsion 2 | 1 2 3 3 4 4 4 2 . . . . . Utility 6 | . 3 6 7 10 10 10 6 3 3 2 2 1 Weapon 7 | 1 4 10 11 9 8 8 5 2 2 2 2 1 Tool/Special . | . . . . . . . . . . . . . Unused Backups 23 | . 1 . 8 . . . 9 2 2 . 1 . Power 2 | . . . 1 . . . 1 . . . . . Propulsion . | . . . . . . . . . . . . . Utility 12 | . . . 5 . . . 5 . 1 . 1 . Weapon 8 | . 1 . 2 . . . 2 2 1 . . . Tool/Special 1 | . . . . . . . 1 . . . . . Average Slot Usage (%) 96 | . 100 99 99 100 100 100 99 99 76 75 89 62 Engine 9 | . 14 13 8 11 11 11 9 7 1 7 7 4 Treads 16 | . 20 14 21 27 33 33 9 . . . . . Wheel 6 | . 8 13 11 5 . . 6 . . . . . Hover 6 | . . . . . . . 19 37 23 23 23 9 Flight 1 | . . . . . . . . . . . 13 8 Device 9 | . 14 13 12 11 11 11 4 . 1 5 . 1 Storage 9 | . 14 14 11 11 11 11 9 7 4 . . . Processor 11 | . . . 9 11 11 11 17 22 23 24 30 28 Protection 1 | . . . . . . . 4 7 7 7 7 3 Energy Gun 4 | . 27 2 . . . . . . . . . . Ballistic Gun 1 | . . . 3 . . . . 1 . . . . Ballistic Cannon 10 | . . 18 15 22 22 21 12 . . . . . Impact Weapon 2 | . . . 2 . . . 5 7 7 4 . . Peak Build Rating 56 | 7 11 18 25 18 19 22 34 41 41 49 56 56 Average Rating 22 | 5 8 9 19 18 18 19 28 38 32 39 54 36 On Entrance 24 | . 7 11 18 18 18 19 20 31 41 34 47 56 Naked Turns . | . . . . . . . . . . . . . Heaviest Build 105 | 15 91 103 105 96 96 97 98 28 23 23 22 22 Greatest Support 82 | 40 40 16 60 60 60 60 82 39 39 23 23 23 Greatest Overweight (x) 9 | . 5 6 9 2 1 1 3 . 2 . . 1 Average Overweight (x) 1 | . 2 5 2 1 1 1 . . . . . . Largest Inventory Capacity 25 | 8 25 25 25 25 25 25 25 8 8 5 5 5 Average Capacity 19 | 7 17 25 25 25 25 25 16 8 6 5 5 5 Most Carried 25 | 4 24 24 25 25 25 25 25 8 8 5 5 5 Average Carried 17 | 2 12 22 24 25 24 25 16 7 6 4 4 3 Final Capacity 25 | 8 25 25 25 25 25 25 8 8 5 5 5 5 Final Carried 25 | 4 24 23 25 25 25 25 8 8 5 5 5 . Class Distribution -------------------- 85% | Mutant 14% | Scavenger-Mutant Dominant Class ---------------- Mutant | -10/Materials Mutant | -10/Mines Mutant | -9/Materials Mutant | -9/Mines Mutant | -9/Exiles Mutant | -8/Mines Mutant | -8/Materials Mutant | -7/Factory Mutant | -7/Lower Caves Mutant | -7/Lower Caves Mutant | -7/Zion Mutant | -7/Deep Caves Resources | -11 -10 -10 -9 -9 -9 -8 -8 -7 -7 -7 -7 -7 ----------- Run | Yrd Mat Min Mat Min Exi Min Mat Fac Low Low Zio Dee Matter Collected 3707 | 270 273 270 1616 126 . 89 716 12 150 20 48 117 Remotely . | . . . . . . . . . . . . . Salvage Created 3586 | 95 645 125 1464 128 . 55 680 77 289 28 . . Parts 172 | 4 34 10 87 12 . 1 13 5 5 1 . . Haulers Intercepted 9 | . 2 . 4 . . . 3 . . . . . Recyclers Shooed 3 | . . . 2 . . . 1 . . . . . Parts Field Recycled . | . . . . . . . . . . . . . Retrieved Matter . | . . . . . . . . . . . . . Parts Self-Destructed 1 | . . . . . . . . . . 1 . . Prevented 1 | . . . . . . . . . 1 . . . Kills | -11 -10 -10 -9 -9 -9 -8 -8 -7 -7 -7 -7 -7 ------- Run | Yrd Mat Min Mat Min Exi Min Mat Fac Low Low Zio Dee Combat Hostiles Destroyed 86 | . 10 12 42 7 . 4 3 4 3 1 . . Melee 1 | . . . . . . . . . 1 . . . Guns 17 | . 9 1 6 . . . . 1 . . . . Cannons 46 | . . 5 29 7 . 2 2 . 1 . . . AOE 19 | . . 6 7 . . 2 . 3 1 . . . Classes Destroyed 16 | 2 6 2 3 . . 2 . . 1 . . . Worker 4 | . 3 . . 1 . . . . . . . . Builder 1 | . . . 1 . . . . . . . . . Tunneler 1 | 1 . . . . . . . . . . . . Hauler 9 | . 2 . 4 . . . 3 . . . . . Recycler 11 | 1 . . 3 . . . 7 . . . . . Minesweeper 1 | . . . . . . . . . 1 . . . Operator 3 | . 2 . 1 . . . . . . . . . Watcher 8 | . 3 . 4 . . . 1 . . . . . Swarmer 33 | . 3 6 16 4 . . . 3 . 1 . . Grunt 31 | . 7 1 16 3 . 2 1 . 1 . . . Brawler 2 | . . . . . . 1 1 . . . . . Duelist 2 | . . . 1 . . . . 1 . . . . Sentry 11 | . . . 9 . . . 1 . 1 . . . Demolisher 1 | . . 1 . . . . . . . . . . Hunter 1 | . . . . . . 1 . . . . . . Packrat 1 | . . . . . . . . . 1 . . . Assembled 5 | . . 5 . . . . . . . . . . Thug 1 | . . . . . . . . . 1 . . . Best Kill Streak 7 | 2 6 5 7 6 . 3 5 3 1 1 . . Combat Bots Only 6 | . 4 5 6 6 . 3 1 3 1 1 . . Max Kills in Single Turn 4 | 1 2 2 4 2 . 2 1 2 1 1 . . Gunslinging 1 | . 1 . . . . . . . . . . . Exploded 4 | . . 2 4 . . 2 . 2 1 . . . Melee 1 | . . . . . . . . . 1 . . . Uniques/NPCs Destroyed . | . . . . . . . . . . . . . Combat | -11 -10 -10 -9 -9 -9 -8 -8 -7 -7 -7 -7 -7 -------- Run | Yrd Mat Min Mat Min Exi Min Mat Fac Low Low Zio Dee Hostile Shots Fired 505 | . 64 27 171 25 . 16 26 44 52 9 . 71 Missed 137 | . 16 6 39 4 . 4 10 10 19 4 . 25 Hits 368 | . 48 21 132 21 . 12 16 34 33 5 . 46 Melee 7 | . . 3 2 . . 1 . 1 . . . . Projectile 361 | . 48 18 130 21 . 11 16 33 33 5 . 46 AOE 11 | . . 11 . . . . . . . . . . Critical Strikes 8 | . 2 . 2 . . . 1 1 2 . . . Damage Taken 5792 | . 489 642 1367 223 . 215 237 597 309 84 . 1629 Core 1255 | . 96 92 204 45 . 69 32 43 61 . . 613 Absorbed by Shields . | . . . . . . . . . . . . . Regen/Repaired (Parts) 149 | . . . 104 . . . . . . . 45 . Core Remaining (%) 59 | 100 . 24 . . . 20 94 . . . . . Volleys Fired 352 | 4 61 24 168 11 . 9 37 16 4 1 7 10 Largest 2 | 2 2 2 2 2 . 2 2 1 1 1 1 1 Hottest 90 | 80 90 90 73 60 . 72 63 63 69 . . 69 Shots Fired 502 | 8 118 33 214 22 . 18 51 16 4 1 7 10 Gun 170 | 8 116 4 35 . . . . 7 . . . . Cannon 300 | . 2 25 175 22 . 14 51 6 4 . . 1 Launcher 15 | . . 4 4 . . 4 . 3 . . . . Special 17 | . . . . . . . . . . 1 7 9 Kinetic 323 | . 2 25 202 22 . 14 51 7 . . . . Thermal 58 | . 47 3 8 . . . . . . . . . Explosive 15 | . . 4 4 . . 4 . 3 . . . . Electromagnetic 89 | 8 69 1 . . . . . 6 4 . . 1 Robot Hit Streak 21 | 2 6 8 9 8 . 9 21 5 3 2 . 4 Robot Miss Streak 7 | 2 3 3 7 2 . 1 3 3 1 . . 1 Penetration Max 1 | . . . 1 . . . . . . . . . Secondary Targets 5 | . 3 . 2 . . . . . . . . . Max Gunslinging Chain 1 | . 1 . 1 . . . . . . . . . Shots Hit Robots 319 | 5 77 18 112 12 . 12 53 9 12 1 . 8 Core Hits 146 | 2 29 16 57 9 . 11 11 8 3 . . . Critical Kills 16 | . . 1 13 . . . 1 . 1 . . . Critical Parts Destroyed 26 | . . . 21 . . . 2 . 3 . . . Critical Strikes 55 | . 6 1 40 . . . 4 . 4 . . . Burn 3 | . 2 . 1 . . . . . . . . . Destroy 39 | . . 1 38 . . . . . . . . . Blast 2 | . . . 1 . . . 1 . . . . . Corrupt 4 | . 4 . . . . . . . . . . . Smash 7 | . . . . . . . 3 . 4 . . . Melee Attacks 70 | . . . 13 . . . 30 10 15 2 . . Impact 70 | . . . 13 . . . 30 10 15 2 . . Slashing . | . . . . . . . . . . . . . Piercing . | . . . . . . . . . . . . . Sneak Attacks 15 | . . . 2 . . . 11 . 2 . . . Combat Hostiles . | . . . . . . . . . . . . . Follow-up Attacks . | . . . . . . . . . . . . . Damage Inflicted 9100 | 69 1273 698 3177 244 . 432 2072 486 645 . . 4 Guns 1671 | 69 1133 22 321 . . . . 126 . . . . Cannons 3764 | . 16 319 2195 244 . 137 699 71 81 . . 2 Explosions 1615 | . 123 349 559 . . 295 . 289 . . . . Melee 2039 | . . . 102 . . . 1373 . 564 . . . Ramming 11 | . 1 8 . . . . . . . . . 2 Kinetic 4007 | . 16 319 2466 244 . 137 699 126 . . . . Thermal 720 | . 516 98 50 . . . . 56 . . . . Explosive 1350 | . . 263 559 . . 295 . 233 . . . . Electromagnetic 973 | 69 740 10 . . . . . 71 81 . . 2 Impact 2039 | . . . 102 . . . 1373 . 564 . . . Slashing . | . . . . . . . . . . . . . Piercing . | . . . . . . . . . . . . . Highest Corruption 9 | . . 9 . . . . . . . . 5 . Average Corruption 1 | . . 1 . . . . . . . . 5 . Corruption Purged . | . . . . . . . . . . . . . Corruption Blocked . | . . . . . . . . . . . . . Effects 10 | . . 7 . . . . . . . . 3 . Message Errors 3 | . . 2 . . . . . . . . 1 . Matter Fused 4 | . . 2 . . . . . . . . 2 . Heat Flow Errors 2 | . . 2 . . . . . . . . . . Data Loss (minor) 1 | . . 1 . . . . . . . . . . Overload Shots . | . . . . . . . . . . . . . Overflow Damage 821 | . 24 5 112 . . . 529 . 151 . . . Projectiles 27 | . . 5 14 . . . 8 . . . . . Explosions 64 | . 24 . 40 . . . . . . . . . Melee 730 | . . . 58 . . . 521 . 151 . . . Knockbacks 41 | . . 5 20 1 . 2 11 . 2 . . . Impact 5 | . . . . . . . 3 . 2 . . . Kinetic 35 | . . 5 19 1 . 2 8 . . . . . Secondary 1 | . . . 1 . . . . . . . . . Self-Inflicted Damage 144 | . . 87 . . . 1 . 55 . . . 1 Shots 6 | . . 4 . . . 1 . 1 . . . . Rammed 5 | . 1 1 1 . . . . . . . . 2 Targets Rammed 5 | . 1 1 1 . . . . . . . . 2 Kicked . | . . . . . . . . . . . . . Crushed . | . . . . . . . . . . . . . Highest Temperature 216 | 36 54 180 216 . . . 6 81 34 . . 2 Average Temperature 41 | 16 16 42 90 . . . 3 37 17 . . 1 Received Heat Transfer 1580 | . 204 140 390 60 . 45 117 54 138 . . 432 Siege Activations . | . . . . . . . . . . . . . Martial Activations . | . . . . . . . . . . . . . Shielding Activations . | . . . . . . . . . . . . . Robots Disrupted . | . . . . . . . . . . . . . Combat Hostiles . | . . . . . . . . . . . . . Robots Corrupted 8 | . 1 . 2 . . . 3 . 2 . . . Combat Hostiles 3 | . 1 . . . . . 1 . 1 . . . Parts Fried 15 | . 4 . 4 . . . 7 . . . . . Impact Corruptions 26 | . . . 2 . . . 15 . 9 . . . Robots Melted . | . . . . . . . . . . . . . Combat Hostiles . | . . . . . . . . . . . . . Parts Melted 1 | . . 1 . . . . . . . . . . Heat Transferred 2004 | . 1545 137 222 . . . . 100 . . . . Parts Sabotaged . | . . . . . . . . . . . . . Parts Stolen . | . . . . . . . . . . . . . Parts Stripped . | . . . . . . . . . . . . . Power Chain Reactions 4 | . 3 . . . . . . 1 . . . . Alert | -11 -10 -10 -9 -9 -9 -8 -8 -7 -7 -7 -7 -7 ------- Run | Yrd Mat Min Mat Min Exi Min Mat Fac Low Low Zio Dee Maximum Alert Level 2 | . 1 . 2 1 . . . . . . . . Low Security (%) 62 | 100 95 100 10 55 . 100 100 100 . . . . Level 1 21 | . 4 . 48 44 . . . . . . . . Level 2 15 | . . . 40 . . . . . . . . . Level 3 . | . . . . . . . . . . . . . Level 4 . | . . . . . . . . . . . . . Level 5 . | . . . . . . . . . . . . . High Security . | . . . . . . . . . . . . . Max Security . | . . . . . . . . . . . . . Peak Influence 668 | 5 217 114 668 271 . 87 46 110 . . . . Initial 166 | . . 37 . 166 . . . 12 . . . . Average 177 | 1 102 27 366 196 . 14 8 52 . . . . Influence Increases 3212 | 10 508 230 1535 180 . 117 233 224 65 110 . . Destroy 0b10 Robot/C 1620 | . 200 140 860 140 . 80 60 80 40 20 . . Destroy 0b10 Robot/NC 200 | 10 50 . 70 5 . . 55 . 10 . . . Destroy Leader 384 | . 60 30 216 20 . 20 28 10 . . . . Allied During Kill 8 | . . . 8 . . . . . . . . . Successful Hack 116 | . 39 . 44 . . . 33 . . . . . Disable Machine 165 | . 45 30 90 . . . . . . . . . Destroy Structure 194 | . 9 30 97 . . 17 12 29 . . . . Partial Spotted 30 | . . . . . . . . 30 . . . . Lose Combat Pursuer 495 | . 105 . 150 15 . . 45 75 15 90 . . Influence Decreases 3212 | 10 412 326 1106 453 156 117 204 180 138 60 50 . Entered New Map 573 | . . 59 . 263 156 . . 17 28 . 50 . Time Decay 2102 | 10 402 244 686 190 . 117 180 143 80 50 . . Lost Part 173 | . 10 23 80 . . . . 20 30 10 . . Lost Ally 40 | . . . 40 . . . . . . . . . Purge Threat 324 | . . . 300 . . . 24 . . . . . Squads Dispatched 10 | . 2 . 5 . . . . 3 . . . . Investigation 1 | . . . 1 . . . . . . . . . Extermination 1 | . . . . . . . . 1 . . . . Reinforcement 8 | . 2 . 4 . . . . 2 . . . . Assault . | . . . . . . . . . . . . . Garrison . | . . . . . . . . . . . . . Intercept . | . . . . . . . . . . . . . Searches Triggered . | . . . . . . . . . . . . . Construction Impeded 1 | . . . 1 . . . . . . . . . Haulers Reinforced . | . . . . . . . . . . . . . Active Scanning Responses . | . . . . . . . . . . . . . Cargo Convoy Interrupts . | . . . . . . . . . . . . . Stealth | -11 -10 -10 -9 -9 -9 -8 -8 -7 -7 -7 -7 -7 --------- Run | Yrd Mat Min Mat Min Exi Min Mat Fac Low Low Zio Dee Distress Signals 14 | . 3 3 6 . . . 2 . . . . . Communications Jammed . | . . . . . . . . . . . . . Distress Signals . | . . . . . . . . . . . . . Times Spotted 167 | . 30 11 72 8 . 4 11 10 11 7 . 3 Peak Tracking Total 8 | . 7 6 8 6 . 3 3 6 5 5 . 3 Tactical Retreats 28 | . 6 1 9 1 . . 3 2 4 2 . . Traps | -11 -10 -10 -9 -9 -9 -8 -8 -7 -7 -7 -7 -7 ------- Run | Yrd Mat Min Mat Min Exi Min Mat Fac Low Low Zio Dee Traps Triggered 2 | . . . . . . . 1 1 . . . . Indirectly . | . . . . . . . . . . . . . Trap Hack Attempts . | . . . . . . . . . . . . . Triggered . | . . . . . . . . . . . . . Disarmed . | . . . . . . . . . . . . . Reprogrammed . | . . . . . . . . . . . . . Reused 1 | . . . . . . . . . 1 . . . Traps Extracted . | . . . . . . . . . . . . . Installed 5 | . . . . . . . . . 5 . . . Triggered . | . . . . . . . . . . . . . Machines | -11 -10 -10 -9 -9 -9 -8 -8 -7 -7 -7 -7 -7 ---------- Run | Yrd Mat Min Mat Min Exi Min Mat Fac Low Low Zio Dee Machines Disabled 12 | . 3 2 6 . . . . . . 1 . . Max in Single Turn 1 | . 1 1 1 . . . . . . 1 . . Machines Repaired . | . . . . . . . . . . . . . Machines Dismantled . | . . . . . . . . . . . . . Machines Sabotaged . | . . . . . . . . . . . . . Overloaded Fab Kills . | . . . . . . . . . . . . . Hacking | -11 -10 -10 -9 -9 -9 -8 -8 -7 -7 -7 -7 -7 --------- Run | Yrd Mat Min Mat Min Exi Min Mat Fac Low Low Zio Dee Machines Accessed 23 | . 7 . 10 . 2 . 4 . . . . . Terminals 20 | . 7 . 9 . . . 4 . . . . . Fabricators . | . . . . . . . . . . . . . Repair Stations 1 | . . . 1 . . . . . . . . . Recycling Units . | . . . . . . . . . . . . . Scanalyzers . | . . . . . . . . . . . . . Garrison Access . | . . . . . . . . . . . . . Total Hacks 81 | . 23 . 30 . 5 . 23 . . . . . Successful 49 | . 12 . 16 . 5 . 16 . . . . . Failed 32 | . 11 . 14 . . . 7 . . . . . Catastrophic 4 | . . . 3 . . . 1 . . . . . Database Lockouts . | . . . . . . . . . . . . . Manual 49 | . 11 . 23 . 1 . 13 . . 1 . . Terminals 74 | . 23 . 28 . . . 23 . . . . . Fabricators . | . . . . . . . . . . . . . Repair Stations 2 | . . . 2 . . . . . . . . . Recycling Units . | . . . . . . . . . . . . . Scanalyzers . | . . . . . . . . . . . . . Garrison Access . | . . . . . . . . . . . . . Terminal Hacks 26 | . 5 . 7 . 5 . 9 . . . . . Record 4 | . . . . . 4 . . . . . . . Robot Analysis 1 | . . . 1 . . . . . . . . . Prototype ID Bank 6 | . 3 . 2 . . . 1 . . . . . Emergency Access Points 1 | . . . . . . . 1 . . . . . Alert Level 2 | . . . 1 . . . 1 . . . . . Unreport Threat 3 | . . . 2 . . . 1 . . . . . Locate Traps 4 | . 2 . 1 . . . 1 . . . . . Hauler Manifests 1 | . . . . . . . 1 . . . . . Registered Prototypes 1 | . . . . . . . 1 . . . . . Zone Layout 2 | . . . . . . . 2 . . . . . Proto ID Catalog 1 | . . . . . 1 . . . . . . . Fabricator Hacks . | . . . . . . . . . . . . . Repair Station Hacks 2 | . . . 2 . . . . . . . . . Scan Component 1 | . . . 1 . . . . . . . . . Repair 1 | . . . 1 . . . . . . . . . Recycling Unit Hacks . | . . . . . . . . . . . . . Scanalyzer . | . . . . . . . . . . . . . Garrison Access Hacks . | . . . . . . . . . . . . . Unauthorized Hacks 21 | . 7 . 7 . . . 7 . . . . . Terminals 21 | . 7 . 7 . . . 7 . . . . . Track 1 | . . . . . . . 1 . . . . . Botnet 5 | . 2 . 1 . . . 2 . . . . . Operators 2 | . . . 1 . . . 1 . . . . . Skim 13 | . 5 . 5 . . . 3 . . . . . Fabricators . | . . . . . . . . . . . . . Repair Stations . | . . . . . . . . . . . . . Recycling Units . | . . . . . . . . . . . . . Scanalyzers . | . . . . . . . . . . . . . Garrison Access . | . . . . . . . . . . . . . Data Cores Recovered . | . . . . . . . . . . . . . Used . | . . . . . . . . . . . . . Hacking Detections 20 | . 7 . 9 . . . 4 . . . . . Full Trace Events 1 | . . . 1 . . . . . . . . . Feedback Events . | . . . . . . . . . . . . . Feedback Blocked . | . . . . . . . . . . . . . Robot Schematics Acquired . | . . . . . . . . . . . . . Robots Built . | . . . . . . . . . . . . . Authchips . | . . . . . . . . . . . . . Time . | . . . . . . . . . . . . . Total Robot Build Rating . | . . . . . . . . . . . . . Part Schematics Acquired . | . . . . . . . . . . . . . Parts Built . | . . . . . . . . . . . . . Authchips . | . . . . . . . . . . . . . Time . | . . . . . . . . . . . . . Total Part Build Rating . | . . . . . . . . . . . . . Parts Repaired 1 | . . . 1 . . . . . . . . . Time 26 | . . . 26 . . . . . . . . . Parts Recycled . | . . . . . . . . . . . . . Recycled Matter . | . . . . . . . . . . . . . Retrieved Matter . | . . . . . . . . . . . . . Retrieved Components . | . . . . . . . . . . . . . Parts Scanalyzed . | . . . . . . . . . . . . . Part Schematics Acquired . | . . . . . . . . . . . . . Parts Damaged . | . . . . . . . . . . . . . Bothacking | -11 -10 -10 -9 -9 -9 -8 -8 -7 -7 -7 -7 -7 ------------ Run | Yrd Mat Min Mat Min Exi Min Mat Fac Low Low Zio Dee Used RIF Installer . | . . . . . . . . . . . . . Robots Hacked . | . . . . . . . . . . . . . Non-combat . | . . . . . . . . . . . . . Combat . | . . . . . . . . . . . . . Robot Hacks Applied . | . . . . . . . . . . . . . Relay Couplers Released . | . . . . . . . . . . . . . Fabnet Peak Effective % . | . . . . . . . . . . . . . Robots Rewired . | . . . . . . . . . . . . . Allies Hacked . | . . . . . . . . . . . . . Hacks Repelled . | . . . . . . . . . . . . . Allies | -11 -10 -10 -9 -9 -9 -8 -8 -7 -7 -7 -7 -7 -------- Run | Yrd Mat Min Mat Min Exi Min Mat Fac Low Low Zio Dee Total Allies 5 | . . 3 . . . . . . . . . 2 Largest Group 3 | . . 3 2 . . . . . . . . 1 Highest-Rated Group 70 | . . 40 24 . . . . . . . . 70 Highest-Rated Ally 70 | . . 16 16 . . . . . . . . 70 Total Orders . | . . . . . . . . . . . . . Ally Attacks 40 | . . . 27 . . . . . . . . 13 Total Damage 420 | . . . 249 . . . . . . . . 171 Kills 2 | . . . 2 . . . . . . . . . Allies Corrupted . | . . . . . . . . . . . . . Allies Melted . | . . . . . . . . . . . . . Field Lobotomies 3 | . . . . . . . . . . . . 3 Intel | -11 -10 -10 -9 -9 -9 -8 -8 -7 -7 -7 -7 -7 ------- Run | Yrd Mat Min Mat Min Exi Min Mat Fac Low Low Zio Dee Active Infowar (turns) 1950 | 24 474 911 541 . . . . . . . . . Seismic 1950 | 24 474 911 541 . . . . . . . . . Robot Analysis Total 1 | . . . 1 . . . . . . . . . Derelict Logs Recovered 7 | . . 1 . 2 . . . . 3 . 1 . Drone Launches 1 | . . . . . . . . . . . . 1 Drone Recoveries 1 | . . . . . . . . . . . . 1 Exploration | -11 -10 -10 -9 -9 -9 -8 -8 -7 -7 -7 -7 -7 ------------- Run | Yrd Mat Min Mat Min Exi Min Mat Fac Low Low Zio Dee Turns Passed 10335 | 92 1668 1003 3069 386 500 582 874 391 718 204 701 147 Spaces Moved 7097 | 42 815 445 1308 172 208 226 655 631 1082 366 986 161 Core 61 | 3 . . . . . . . . . . . 58 Treads 1462 | 39 334 . 533 109 208 226 13 . . . . . Legs . | . . . . . . . . . . . . . Wheels 1954 | . 481 445 775 63 . . 190 . . . . . Hover 3620 | . . . . . . . 452 631 1082 366 986 103 Flight . | . . . . . . . . . . . . . Fastest Speed 44 | 50 160 175 130 130 240 240 48 44 44 52 52 50 Average Speed 115 | 152 168 175 181 199 240 240 83 45 52 52 52 51 Slowest Speed 240 | 160 175 190 240 240 240 240 236 48 180 52 52 100 Overloaded Moves . | . . . . . . . . . . . . . Propulsion Burnouts . | . . . . . . . . . . . . . Robots Hopped . | . . . . . . . . . . . . . Potential Cave-ins . | . . . . . . . . . . . . . Cave-ins Triggered . | . . . . . . . . . . . . . Exploration Rate (%) 57 | 5 97 78 98 47 60 52 36 15 91 57 86 20 Regions Visited 12 Branch Regions 8 Pre-discovered Areas 6 | . . . 2 . 1 . . . . . 3 . Known Exits Taken 3 | . . . . . . 1 1 . . . 1 . Unknown Exits Taken 9 | 1 1 1 1 1 1 . . 1 1 1 . . Scrap Searched 10 | . . 1 . . . 1 . . 4 1 3 . Spaces Dug 48 | . . 1 19 . . . 11 10 6 1 . . Terrain Destroyed 235 | . 8 33 119 . . 29 11 28 6 1 . . Melee 36 | . . . 8 . . . 11 10 6 1 . . Projectile 66 | . . 1 65 . . . . . . . . . AOE 133 | . 8 32 46 . . 29 . 18 . . . . Terrain Rammed . | . . . . . . . . . . . . . Walls Destroyed . | . . . . . . . . . . . . . Machines Disabled . | . . . . . . . . . . . . . Actions | -11 -10 -10 -9 -9 -9 -8 -8 -7 -7 -7 -7 -7 --------- Run | Yrd Mat Min Mat Min Exi Min Mat Fac Low Low Zio Dee Total 8601 | 59 988 631 1773 191 210 247 869 695 1200 373 1159 206 Wait 786 | 2 79 142 183 5 . 7 90 19 92 . 153 14 Move 7085 | 41 814 444 1307 171 207 225 654 630 1081 365 985 161 Hop . | . . . . . . . . . . . . . Pick Up 85 | 5 22 4 31 . 1 . 13 6 . 1 2 . Fast Attach 28 | 6 . . 2 . . . 6 . 1 2 6 5 Attach 36 | 1 1 5 11 . 1 . 4 4 1 . . 8 Detach 4 | . . . . . . . . . 1 . . 3 Swap 84 | . 7 11 32 4 . 5 19 6 . . . . Drop 61 | . 3 . 25 . 1 1 16 4 . 2 6 3 Fire 352 | 4 61 24 168 11 . 9 37 16 4 1 7 10 Melee 70 | . . . 13 . . . 30 10 15 2 . . Ram 4 | . . 1 1 . . . . . . . . 2 Kick . | . . . . . . . . . . . . . Crush 1 | . 1 . . . . . . . . . . . Escape Stasis . | . . . . . . . . . . . . . Rewire . | . . . . . . . . . . . . . Trap 5 | . . . . . . . . . 5 . . . Miscellaneous . | . . . . . . . . . . . . . Route ------- -11/Scrapyard -10/Materials (discovered 5 exits: *Mat x3 / [*Min] / [*Sub]) -10/Mines (discovered 3 exits: *Mat x2 / [*Sub]) -9/Materials (discovered 4 exits: *Mat x3 / [*Min]) -9/Mines (discovered 3 exits: *Mat / *Exi / [*Zio]) -9/Exiles -8/Mines -8/Materials (discovered 2 exits: *Fac x2) -7/Factory (discovered 3 exits: [*Fac] / Sto / [*Low]) -7/Lower Caves -7/Lower Caves (discovered 2 exits: [*Fac] / [*Zio]) -7/Zion (discovered 2 exits: *Dee / [*Pro]) -7/Deep Caves History --------- Turn | Location | Event 10 | -11/Scrapyard | Discovered new exit (range 15) 93 | -11/Scrapyard | Entered Materials 314 | -10/Materials | Build established: Mutant 319 | -10/Materials | Discovered new exit (range 15) 422 | -10/Materials | Discovered new exit (range 16) 713 | -10/Materials | Discovered new exit (range 7) 1332 | -10/Materials | Discovered new exit (range 10) 1433 | -10/Materials | Discovered new exit (range 9) 1761 | -10/Materials | Entered Mines 1828 | -10/Mines | Assembled infested the area 1833 | -10/Mines | Assisted by a Guerilla fighting off Assembled 1881 | -10/Mines | Core integrity fell below 50% 1926 | -10/Mines | Received a Rocket Launcher from a helpful Derelict 1956 | -10/Mines | Learned Materials terminal intel 2196 | -10/Mines | Discovered new exit (range 10) 2427 | -10/Mines | Lost 3 parts (1p1n1u) 2608 | -10/Mines | Discovered new exit (range 12) 2665 | -10/Mines | Discovered new exit (range 5) 2685 | -10/Mines | Assisted by bots powering up and referring to "LRC-V3" 2764 | -10/Mines | Entered Materials 2764 | -9/Materials | Accompanied by 2 allies 2764 | -9/Materials | Evolved 2 slots: Propulsion x1, Utility x1 2765 | -9/Materials | Loaded intel: 12 terminal locations 3066 | -9/Materials | Discovered new exit (range 15) 3226 | -9/Materials | Repaired Lgt. Cannon 3280 | -9/Materials | Discovered new exit (range 8) 3307 | -9/Materials | Build established: Scavenger-Mutant 3415 | -9/Materials | Discovered new exit (range 15) 4850 | -9/Materials | Build established: Mutant 4985 | -9/Materials | Core integrity fell below 50% 5088 | -9/Materials | Identified exit to Materials 5088 | -9/Materials | Learned location of 1 exit from Materials 5137 | -9/Materials | Loaded intel: 17 interactive machine locations 5176 | -9/Materials | Learned location of Zion (-7) 5207 | -9/Materials | Learned Storage stockpile data 5260 | -9/Materials | Learned Storage stockpile data 5294 | -9/Materials | Learned Storage emergency access door positions 5833 | -9/Materials | Entered Mines 5905 | -9/Mines | Learned Materials security intel 5981 | -9/Mines | A Derelict revealed a hidden shortcut to a safe place 5982 | -9/Mines | Discovered exit to Materials (range 10) 6207 | -9/Mines | Deemed a non-threat by the Exiles lab entrance 6209 | -9/Mines | Discovered new exit (range 5) 6219 | -9/Mines | Entered Exiles 6277 | -9/Exiles | Met 8R-AWN 6318 | -9/Exiles | Met EX-HEX 6383 | -9/Exiles | Met EX-BIN 6419 | -9/Exiles | Aligned with FarCom system 6421 | -9/Exiles | Given EX-Vault access code 6483 | -9/Exiles | Opened EX-Vault 6502 | -9/Exiles | Found Field Lobotomy Kit 6546 | -9/Exiles | Warned to stay clear of 0b10 Research branches 6616 | -9/Exiles | Met EX-DEC 6700 | -9/Exiles | Discovered new exit (range 10) 6719 | -9/Exiles | Left Exiles lab with Field Lobotomy Kit 6719 | -9/Exiles | Entered Mines 7207 | -8/Mines | Discovered exit to Materials (range 10) 7301 | -8/Mines | Entered Materials 7301 | -8/Materials | Evolved 2 slots: Propulsion x1, Utility x1 7302 | -8/Materials | Identified exit to Factory 8151 | -8/Materials | Discovered exit to Factory (range 9) 8175 | -8/Materials | Entered Factory 8175 | -7/Factory | Evolved 2 slots: Propulsion x1, Utility x1 8176 | -7/Factory | Identified exit to Storage 8259 | -7/Factory | Discovered new exit (range 15) 8461 | -7/Factory | Discovered new exit (range 6) 8566 | -7/Factory | Entered Lower Caves 8568 | -7/Lower Caves | Attracted the attention of an 0b10 checkpoint 8617 | -7/Lower Caves | Lost 3 parts (1p2n) 8623 | -7/Lower Caves | Learned Factory security intel 8874 | -7/Lower Caves | Encountered a Warlord checkpoint 8993 | -7/Lower Caves | Learned Factory machine intel 9135 | -7/Lower Caves | Lost 3 allies 9226 | -7/Lower Caves | Attacked by a faux Warlord 9265 | -7/Lower Caves | Learned Factory terminal intel 9266 | -7/Lower Caves | Discovered new exit (range 16) 9284 | -7/Lower Caves | Entered another Lower Caves area 9285 | -7/Lower Caves | Encountered a Warlord checkpoint 9313 | -7/Lower Caves | Discovered new exit (range 3) 9399 | -7/Lower Caves | Acquired the password to a Derelict Tinkerer's latest research 9404 | -7/Lower Caves | Found Prototype Special Weapon 9404 | -7/Lower Caves | Identified Molecular Deconstructor 9442 | -7/Lower Caves | Attracted the attention of an 0b10 checkpoint 9476 | -7/Lower Caves | Discovered new exit (range 3) 9488 | -7/Lower Caves | Entered Zion 9521 | -7/Zion | Found Prototype Launcher 9521 | -7/Zion | Identified Gui. Missile Launcher 9544 | -7/Zion | Discovered new exit (range 14) 9546 | -7/Zion | Given the Hacking Drone Bay 9547 | -7/Zion | Found Prototype Device 9570 | -7/Zion | System corruption cleaned by Quarantine Array 9612 | -7/Zion | Learned 4 Factory zone layouts 9615 | -7/Zion | Learned location of Storage (-7) 9647 | -7/Zion | Identified exit to Deep Caves 9773 | -7/Zion | Learned location of Warlord (-5) 9782 | -7/Zion | Learned location of Testing (-2) 10097 | -7/Zion | Saw the warning signs outside the Deep Caves entrance 10189 | -7/Zion | Entered Deep Caves 10243 | -7/Deep Caves | Attacked by Z-Imprinter 10258 | -7/Deep Caves | Assimilated AZ-QC9(z) with FLK Orb 10270 | -7/Deep Caves | Assimilated 0Q-AXZ(z) with FLK Orb 10300 | -7/Deep Caves | Core integrity fell below 50% 10317 | -7/Deep Caves | Identified Hacking Drone Bay 10321 | -7/Deep Caves | Core integrity fell below 20% 10326 | -7/Deep Caves | Lost 13 parts (1p7n2u3w) 10326 | -7/Deep Caves | Assimilated Hacking Drone with FLK Orb 10336 | -7/Deep Caves | Destroyed by Z-Imprinter with Zionite Laser-M Last Messages --------------- 10279_ Phasing Sabre destroyed. 10280_ Acquired 55 matter. 10286_ 0Q-AXZ(z) heat damages Prototype Storage, Prototype Reactor. 10286_ 0Q-AXZ(z) overheating. 10289_ 0Q-AXZ(z) destroyed. 10292_ Imp. EM Pulse Cannon destroyed. 10292_ Adv. Targeting Computer destroyed. 10293_ Acquired Prototype Hover Unit. 10293_ Identified Zio. Glidesys I. 10295_ Acquired Zio. Glidesys I. 10295_ Zio. Glidesys I destroyed. 10297_ Acquired 62 matter. 10317_ Identified Hacking Drone Bay. 10319_ Hacking Drone released from Hacking Drone Bay. 10323_ Z-Imprinter unaffected by assimilation attempt. 10326_ Field Lobotomy Kit expended. 10326_ Hacking Drone assimilated. 10335_ Slammed into Z-Imprinter. 10335_ Hacking Drone retrieved by Hacking Drone Bay (no repairs). 10336_ Slammed into Z-Imprinter. Map ----- +----------------------------------------------------+ | ?#""#""#???????????????????? #????????? | | ## "##??????????????????? #????????? | | "#??????????????????? #????????? | | ##??????????????????? ##???????? | | #???????????????????? ##??????? | | * ###??????????????????# ##?????? | | !" #?????????????????## #?????? | | %"#?????????????????## ???????? | | ###""""###"######## #??????????? | | #???????????? | | ##??????????? | | ##?????????? | | #"############# ##????????? | | #####???????????## ######???? | | ##??????????????### #???? | | #??????????????## #???? | | #??????????????# ##### #???? | | #?????????????# #????? #???? | | #?????????????# #??????????? | | #?????????????# ##??????????? | | ##?????????????# #???????????? | | #??????????????# ### #???????????? | | ??????????????###??# #???????????? | | ?????????????????### ##??????????? | | #????????????????##; #??????????? | | #????????????###### @I #??????????? | | ?????????????????## #; ##?????????? | | ????????????????## ##????????? | | ???????????????## ##### ???? | | ??????????????## #? | | ????????????### #? | | ???????????## ;; ##? | | ???????????# ### # #?? | | ???????????# ;##?# #;## #?? | | ???????????#" ;#???# ### #### #?? | | ???????????######????# #?# #???# #?? | | ?????????????????????# ##?# #???? #?? | | ?????????????????????####?? ????? ##?? | | ??????????????????????????? ??????#??? | | ??????????????????????????? ?????????? | | ???????????????????????????## ????????? | | ?????????????????????????????# ???????? | | ?????????????????????????????? ????????? | | ??????????????????????????????# ?????????? | | ?????????????????????????????????????????? | | ?????????????????????????????????????????? | | | | | | | | | +----------------------------------------------------+ Best States ------------- Heat Dissipation 53 Coolant Potential 65 Energy Generation 14 Energy Capacity 310 Matter Stores 300 Matter Capacity 300 Sight Range 16 Terrain Scan Density 10 Armor Coverage 225 Phase Shifting 5 Evasion (%) 60 Targeting Accuracy 22 Core Analysis 6 Recoil Reduction 4 Item Schematics ----------------- None Robot Schematics ------------------ None Fabricated ------------ Nothing Repaired ---------- Lgt. Cannon | 13% | -9/Materials Alien Tech Used ----------------- None Achievements -------------- None Challenges ------------ None Game ------ Seed ChipNeutrinoAmplifier Manual? 0 Play Time 01:22:53 Cumulative 171.4 hours Start 2025.08.04 @ 18:24:23 End 2025.08.04 @ 19:44:26 Sessions 1 Manual Loads 0 Difficulty Rogue Special Mode None Game No. 151 Rogue 151 Adventurer 0 Explorer 0 Win Type - Total 3 Types 2/0/0/1/0/0/0/0/0/0 Lore% 73 Gallery% 65 Achievement% 57 Wizard Run 0 Options --------- Layout 0 ASCII 0 Keyboard 1 Movement Numpad Keybinds 0 Fullscreen 1 Font 24/Terminus Map View 76x50 Zoom Use 0% Tactical HUD 1 Map Filters NONE Filters NONE Steam 1 RUN: 47f2fff4-ed9b-4b4d-a8a2-c0020aab6808